fUSD/lending_fUSD_20250916
["ID","MTS","AMOUNT","RATE_DAILY","PERIOD"]
[385738913,1757997164890,-336.43180751,0.00035616,7]
[385738914,1757997165252,-151.0,0.00027397,7]
[385738915,1757997165261,-151.0,0.00027397,7]
[385738916,1757997165271,-151.0,0.00029594,7]
[385738917,1757997165280,-151.0,0.0003,7]
[385738918,1757997165289,-140.72499814,0.0003,7]
[385738919,1757997165408,-116.46976786,0.0003,7]
[385738920,1757997165418,-151.0,0.00031,7]
[385738921,1757997165427,-4643.69158931,0.0003268,2]
[385738922,1757997223682,273.71,0.00027484,120]
[385738923,1757997308162,1695.008005,7.945e-05,2]
[385738931,1757997865161,153.04,0.00012589,2]
[385738932,1757997865368,153.04,0.00013329,2]
[385738933,1757997865560,153.04,0.0001407,2]
[385738934,1757997865759,153.04,0.0001481,2]
[385738935,1757997865954,153.04,0.00015551,2]
[385738936,1757997866153,153.04,0.00016291,2]
[385738937,1757997866356,153.04,0.00017032,2]
[385738938,1757997866546,153.04,0.00017772,2]
[385738939,1757997866756,153.04,0.00018513,2]
[385738940,1757997868225,-153.04,0.00019253,2]
[385740685,1757998382625,153.06,0.00018227,2]
[385740686,1757998476105,-211.37361214,0.000198,2]
[385740690,1757998735252,-1.82101467,0.000198,2]
[385740711,1757998812275,-152.0,0.000198,2]
[385740725,1757998841672,-246.17898533,0.000198,2]
[385740728,1757998846099,-400.0,0.000198,2]
[385740730,1757998849414,-215.1413031,0.000198,2]
[385740732,1757998853805,-162.67817003,0.000198,2]
[385740734,1757998856112,-224.567482,0.000198,2]
[385740736,1757998858739,-34.03607954,0.000198,2]
[385740751,1757998970141,-471.33048422,0.000198,2]
[385740752,1757998973146,-231.60264429,0.000198,2]
[385740753,1757998976199,-164.34757401,0.000198,2]
[385740754,1757998978593,-201.55430748,0.000198,2]
[385740755,1757999066383,527.735,0.000198,7]
[385740756,1757999067260,1000.0,0.000198,7]
[385740757,1757999067312,599.199,0.000198,7]
[385740778,1757999223146,218.96,0.00026453,120]
[385740779,1757999223496,218.96,0.00029098,120]
[385740784,1757999307315,201.64,0.00030137,120]
[385740786,1757999408597,-227.4296013,0.00019945,2]
[385740787,1757999408662,-281.51117101,0.00019945,2]
[385740788,1757999408712,-250.0,0.00019969,2]
[385740789,1757999408760,-300.0,0.00019969,2]
[385740790,1757999408797,-153.04,0.00019994,2]
[385740791,1757999408820,-323.35443237,0.00020388,2]
[385740792,1757999408843,-1068.83502,0.000206,2]
[385740793,1757999408865,-5240.79512094,0.00020667,2]
[385740794,1757999408889,-153.04,0.00020734,2]
[385740795,1757999408912,-290.83,0.00020786,2]
[385740796,1757999408934,-1255.2,0.00020786,2]
[385740797,1757999408958,-1200.0,0.0002084,2]
[385740798,1757999408979,-2702.81,0.00020841,2]
[385740799,1757999409003,-150.0,0.00020878,7]
[385740800,1757999409025,-1267.4,0.00020924,2]
[385740801,1757999409047,-9793.13,0.0002096,2]
[385740802,1757999409069,-160.57,0.00021,2]
[385740803,1757999409090,-1529.32,0.00021067,2]
[385740804,1757999409116,-218.96,0.00021162,2]
[385740805,1757999409140,-153.04,0.00021475,2]
[385740806,1757999409163,-1068.83502,0.000216,2]
[385740807,1757999409185,-207.72,0.00021653,2]
[385740808,1757999409207,-206.24,0.00021734,2]
[385740809,1757999409229,-666.0,0.00021751,3]
[385740810,1757999409250,-150.0,0.00021842,2]
[385740811,1757999409272,-250.0,0.00021864,2]
[385740812,1757999409294,-314.17,0.00021879,2]
[385740813,1757999409320,-31602.52,0.00021908,2]
[385740814,1757999409342,-5000.0,0.00021918,2]
[385740815,1757999409365,-2500.0,0.00021939,2]
[385740816,1757999409387,-2500.0,0.00021939,2]
[385740817,1757999409408,-2500.0,0.00021939,2]
[385740818,1757999409435,-2500.0,0.00021939,2]
[385740819,1757999409460,-2500.0,0.00021939,2]
[385740820,1757999409481,-244.50992869,0.00021939,2]
[385740821,1757999409507,-250.0,0.00021939,2]
[385740822,1757999409529,-329.02481428,0.00021939,2]
[385740823,1757999409553,-300.0,0.00021939,2]
[385740824,1757999409576,-676.97273595,0.00021939,3]
[385740825,1757999409598,-500.0,0.00021952,2]
[385740826,1757999409620,-1267.4,0.0002197,2]
[385740827,1757999409646,-2056.06,0.0002202,2]
[385740828,1757999409669,-127253.17,0.00022052,2]
[385740829,1757999409690,-503.96301935,0.00022073,2]
[385740830,1757999409718,-453.21886565,0.00022073,2]
[385740831,1757999409745,-501.06559525,0.00022073,2]
[385740832,1757999409767,-609.23193601,0.00022115,2]
[385740833,1757999409788,-4514.06,0.00022123,2]
[385740834,1757999409810,-577.75,0.00022123,2]
[385740835,1757999409832,-2935.1436736,0.000222,2]
[385740836,1757999409853,-20308.15,0.00022206,2]
[385740837,1757999409879,-153.04,0.00022215,2]
[385740838,1757999409902,-3466.98,0.00022257,2]
[385740839,1757999409926,-14295.76918205,0.00022267,2]
[385740840,1757999409954,-13788.36,0.00022287,2]
[385740841,1757999409975,-3579.49,0.00022427,2]
[385740842,1757999410185,-444.79,0.0002243,2]
[385740843,1757999410208,-578.6,0.0002251,2]
[385740844,1757999410231,-1068.83502,0.000226,2]
[385740845,1757999410254,-1234.0,0.00022781,2]
[385740846,1757999410278,-153.04,0.00022956,2]
[385740847,1757999410300,-1267.4,0.00023016,2]
[385740848,1757999410323,-3034.62,0.00023027,2]
[385740849,1757999410345,-500.0,0.00023075,2]
[385740850,1757999410367,-507.18843094,0.00023075,2]
[385740851,1757999410389,-500.6771465,0.00023075,2]
[385740852,1757999410414,-267.91,0.00023093,2]
[385740853,1757999410442,-2064.45,0.00023134,2]
[385740854,1757999410465,-1191.18,0.00023134,2]
[385740855,1757999410487,-1068.83502,0.000236,2]
[385740856,1757999410514,-1004.32459091,0.00023623,2]
[385740857,1757999410538,-163.01,0.00023673,2]
[385740858,1757999410563,-153.04,0.00023696,2]
[385740859,1757999410586,-862.65,0.00023726,2]
[385740860,1757999410610,-218.96,0.00023807,2]
[385740861,1757999410634,-23327.8187286,0.00023873,2]
[385740862,1757999410656,-500.86369231,0.00023973,2]
[385740863,1757999410678,-501.25490297,0.00023973,2]
[385740864,1757999410702,-500.0,0.00023973,2]
[385740865,1757999410726,-500.0,0.00023973,2]
[385740866,1757999410753,-516.40360226,0.00023973,2]
[385740867,1757999410777,-618.79631653,0.00023973,2]
[385740868,1757999410806,-500.0,0.00023973,2]
[385740869,1757999410829,-374.27132024,0.00023973,2]
[385740870,1757999410852,-500.0,0.00023973,2]
[385740871,1757999410876,-1267.4,0.00024062,2]
[385740872,1757999410898,-1899.6672,0.00024219,10]
[385740873,1757999410920,-252.0,0.00024342,2]
[385740874,1757999410946,-153.04,0.00024437,2]
[385740875,1757999410969,-267.91,0.00024463,2]
[385740876,1757999410991,-1000.0,0.00024521,2]
[385740877,1757999411014,-1000.0,0.00024521,2]
[385740878,1757999411036,-502.0480485,0.00024521,2]
[385740879,1757999411060,-1000.0,0.00024521,2]
[385740880,1757999411082,-1068.83502,0.000246,2]
[385740881,1757999411106,-862.65,0.00024616,2]
[385740882,1757999411129,-1000.0,0.00024658,2]
[385740883,1757999411151,-194.09,0.00024658,2]
[385740884,1757999411174,-24536.21159079,0.00024832,2]
[385740885,1757999411196,-347.57891304,0.00024873,2]
[385740886,1757999411224,-17816.2593939,0.0002489,2]
[385740887,1757999411271,-12760.88837021,0.000249,2]
[385740888,1757999411300,-500.0,0.00024932,2]
[385740889,1757999411333,-163.01,0.00024976,2]
[385740890,1757999411356,-515.95536276,0.00025,7]
[385740891,1757999411384,-1500.0,0.00025068,2]
[385740892,1757999411406,-1500.0,0.00025068,2]
[385740893,1757999411431,-773.147572,0.00025068,2]
[385740894,1757999411455,-1267.4,0.00025108,2]
[385740895,1757999411478,-16943.95341279,0.00025143,2]
[385740896,1757999411500,-500.0,0.00025143,2]
[385740897,1757999411521,-500.0,0.00025143,2]
[385740898,1757999411543,-500.0,0.00025143,2]
[385740899,1757999411566,-500.0,0.00025143,2]
[385740900,1757999411588,-500.0,0.00025143,2]
[385740901,1757999411613,-17816.2593939,0.00025157,2]
[385740902,1757999411639,-23327.81872858,0.00025167,2]
[385740903,1757999411667,-153.04,0.00025178,2]
[385740904,1757999411690,-862.65,0.00025505,2]
[385740905,1757999411713,-2000.0,0.00025616,2]
[385740906,1757999411738,-2000.0,0.00025616,2]
[385740907,1757999411761,-155.63057699,0.00025834,2]
[385740908,1757999411785,-17816.2593939,0.00025874,2]
[385740909,1757999411808,-500.0,0.00025973,2]
[385740910,1757999411830,-500.0,0.00025973,2]
[385740911,1757999411862,-500.25994255,0.00025973,2]
[385740912,1757999411885,-500.0,0.00025973,2]
[385740913,1757999411907,-500.0,0.00025973,2]
[385740914,1757999411931,-500.0,0.00025973,2]
[385740915,1757999411955,-165.06199485,0.00025973,2]
[385740916,1757999411977,-500.0,0.00025973,2]
[385740917,1757999412001,-164.73274961,0.00025973,2]
[385740918,1757999412024,-500.0,0.00025973,2]
[385740919,1757999412046,-500.0,0.00025973,2]
[385740920,1757999412070,-500.0,0.00025973,2]
[385740921,1757999412092,-500.0,0.00025973,2]
[385740922,1757999412115,-500.0,0.00025973,2]
[385740923,1757999412137,-500.0,0.00025973,2]
[385740924,1757999412160,-410.89554459,0.00025973,2]
[385740925,1757999412182,-566.31084396,0.00025973,2]
[385740926,1757999412204,-236.77336979,0.00025973,2]
[385740927,1757999412227,-500.0,0.00025973,2]
[385740928,1757999412250,-500.0,0.00025973,2]
[385740929,1757999412272,-200.0,0.00025973,2]
[385740930,1757999412295,-501.76750789,0.00025973,2]
[385740931,1757999412317,-500.0,0.00025973,2]
[385740932,1757999412341,-501.84891724,0.00025973,2]
[385740933,1757999412363,-500.88646432,0.00025973,2]
[385740934,1757999412386,-17816.2593939,0.00025974,2]
[385740935,1757999412678,-3466.98,0.00025974,2]
[385740936,1757999412702,-48223.59549926,0.00025984,2]
[385740937,1757999412725,-24536.21159076,0.00026019,2]
[385740938,1757999412750,-17816.2593939,0.00026154,2]
[385740939,1757999412779,-2500.0,0.00026164,2]
[385740940,1757999412828,-2500.0,0.00026164,2]
[385740941,1757999412884,-163.01,0.00026278,2]
[385740942,1757999412936,-160.0,0.00026377,2]
[385740943,1757999413000,-160.0,0.00026377,2]
[385740944,1757999413063,-160.0,0.00026377,2]
[385740945,1757999413132,-515.95536276,0.00026377,2]
[385740946,1757999413202,-862.65,0.00026395,2]
[385740947,1757999413250,-23327.81872858,0.0002646,2]
[385740948,1757999413299,-15644.1104822,0.000265,2]
[385740949,1757999413340,-17816.2593939,0.0002651,2]
[385740950,1757999413364,-15644.1104822,0.00026511,2]
[385740951,1757999413388,-21140.69926019,0.0002652,2]
[385740952,1757999413412,-586.88288257,0.00026521,2]
[385740953,1757999413437,-1000.0,0.00026521,2]
[385740954,1757999413459,-1000.0,0.00026521,2]
[385740955,1757999413482,-953.35906262,0.00026521,2]
[385740956,1757999413505,-1000.0,0.00026521,2]
[385740957,1757999413527,-1000.0,0.00026521,2]
[385740958,1757999413551,-1000.0,0.00026521,2]
[385740959,1757999413574,-1000.0,0.00026521,2]
[385740960,1757999413598,-1000.0,0.00026521,2]
[385740961,1757999413621,-394.44228446,0.00026521,2]
[385740962,1757999413644,-300.80015741,0.00026521,2]
[385740963,1757999413667,-1000.0,0.00026521,2]
[385740964,1757999413689,-1000.92217884,0.00026521,2]
[385740965,1757999413711,-1000.0,0.00026521,2]
[385740966,1757999413732,-506.0,0.00026712,2]
[385740967,1757999413756,-3000.0,0.00026712,2]
[385740968,1757999413781,-3000.0,0.00026712,2]
[385740969,1757999413806,-15644.1104822,0.00026911,2]
[385740970,1757999413830,-4816.29416438,0.00026917,2]
[385740973,1757999431984,-500.0,0.00019945,2]
[385740974,1757999431993,-500.0,0.00019945,2]
[385740975,1757999432002,-500.0,0.00019945,2]
[385740976,1757999432013,-500.0,0.00019945,2]
[385740977,1757999432023,-500.0,0.00019945,2]
[385740978,1757999432032,-544.36573656,0.00019945,2]
[385740979,1757999432041,-500.0,0.00022073,2]
[385740980,1757999432051,-213.1401216,0.00026377,2]
[385740981,1757999432063,-863.5893623,0.00026917,2]
[385740982,1757999432072,-9064.56671247,0.00026921,2]
[385740983,1757999432083,-1925.95844431,0.00026921,2]
[385740984,1757999432110,-4446.2799999,0.00026921,2]
[385740985,1757999432121,-4727.03,0.00026921,2]
[385740986,1757999432132,-1800.0,0.00026921,2]
[385740987,1757999432144,-1300.0,0.00026921,2]
[385740988,1757999432155,-29882.53635128,0.00026921,2]
[385740989,1757999432165,-322267.42238683,0.00026921,3]
[385740990,1757999432182,-356830.521,0.00026921,3]
[385740991,1757999432194,-35000.0,0.00026921,3]
[385740993,1757999432256,-152.835944,0.00026712,7]
[385740995,1757999432266,-74717.72311079,0.00026921,3]
[385741190,1757999439975,-338.26285962,0.00022072,2]
[385741192,1757999439984,-154.268243,0.00026712,7]
[385741194,1757999439993,-158.619384,0.00026712,7]
[385741196,1757999440003,-300.0,0.000269,9]
[385741198,1757999440012,-168.78877537,0.00026916,2]
[385741200,1757999440021,-283.16506795,0.00026916,2]
[385741202,1757999440031,-11157.66811626,0.00026921,3]
[385742901,1757999463671,2500.0,0.00029268,120]
[385742902,1757999463793,2500.0,0.0002666,120]
[385742903,1757999463899,2500.0,0.00026802,120]
[385742904,1757999464018,411.70862763,0.00026802,120]
[385742919,1757999756234,324.16,0.00019022,2]
[385742936,1757999989334,188.11,0.00012842,2]
[385742937,1757999989471,188.11,0.00013518,2]
[385742938,1757999989682,188.11,0.00014194,2]
[385742939,1757999989906,188.11,0.0001487,2]
[385742940,1757999990107,188.11,0.00015545,2]
[385742941,1757999990337,188.11,0.00016221,2]
[385742942,1757999990537,188.11,0.00016897,2]
[385742943,1757999990729,188.11,0.00017573,2]
[385742944,1757999990944,188.11,0.00018249,2]
[385742945,1757999991154,188.11,0.00018925,2]
[385742950,1758000015613,-177.34,0.00019601,2]
[385742952,1758000036491,2485.62096059,0.0003,120]
[385742954,1758000184925,-10.77,0.00019601,2]
[385742955,1758000184947,-201.12,0.000197,2]
[385742956,1758000190156,-40.16905024,0.000197,2]
[385742975,1758000632152,-747.94902305,0.00019899,2]
[385742978,1758000632212,-337.52950501,0.00019899,2]
[385742979,1758000632223,-151.0,0.000199,2]
[385742980,1758000632232,-198.21554756,0.00019989,2]
[385742981,1758000632242,-28.76409021,0.0001999,2]
[385742982,1758000632253,-455.08090991,0.0001999,2]
[385742983,1758000632263,-32382.04002193,0.0002,2]
[385742984,1758000632274,-3946.15868337,0.0002,2]
[385743157,1758000640134,-251.3121747,0.0002,2]
[385743188,1758000640410,-299.559499,0.0002,2]
[385743195,1758000640471,-14674.26680939,0.0002,2]
[385743197,1758000640480,-164.23561952,0.00020177,2]
[385743199,1758000640489,-188.11,0.00020277,2]
[385743201,1758000640498,-156.587,0.00020448,2]
[385743203,1758000640507,-963.0,0.00020952,2]
[385743205,1758000640516,-188.11,0.00020953,2]
[385743207,1758000640526,-162.380719,0.00020996,2]
[385743209,1758000640535,-226.91867928,0.00021544,2]
[385743211,1758000640544,-188.11,0.00021628,2]
[385743213,1758000640553,-21133.85696464,0.000219,2]
[385743215,1758000640563,-500.0,0.00021973,2]
[385743217,1758000640572,-500.0,0.00021973,2]
[385743219,1758000640581,-508.52056865,0.00021973,2]
[385743221,1758000640590,-500.0,0.00021973,2]
[385743223,1758000640599,-606.29159406,0.00021973,2]
[385743225,1758000640608,-500.0,0.00021973,2]
[385743227,1758000640618,-165.93264894,0.00021973,2]
[385743229,1758000640627,-601.15033295,0.00021973,2]
[385743231,1758000640636,-272.02420371,0.00021973,2]
[385743233,1758000640645,-507.31432009,0.00021973,2]
[385743235,1758000640654,-466.00474197,0.00022,2]
[385743237,1758000640663,-2015.1857978,0.00022,4]
[385743432,1758000645705,-30400.0,0.00022,4]
[385743433,1758000645716,-143844.8407639,0.00022,4]
[385743442,1758000646385,-43786.0235614,0.00022,4]
[385743443,1758000646396,-14141.39178,0.00022,4]
[385743444,1758000646408,-5766.30779349,0.00022,4]
[385743445,1758000646419,-8700.86584681,0.00022,4]
[385743446,1758000646431,-3488.25706668,0.00022,4]
[385743478,1758000950490,154.85,0.00011193,2]
[385743479,1758000950701,154.85,0.0001221,2]
[385743480,1758000951129,154.85,0.00013228,2]
[385743481,1758000951329,154.85,0.00014245,2]
[385743482,1758000951529,154.85,0.00015263,2]
[385743483,1758000951777,154.85,0.00016281,2]
[385743484,1758000951960,154.85,0.00017298,2]
[385743485,1758000952170,154.85,0.00018316,2]
[385743486,1758000952364,154.85,0.00019333,2]
[385743509,1758001696712,155.97,0.00016712,2]
[385743511,1758001717241,150.57,0.00030137,120]
[385743515,1758001831420,-154.85,0.00020351,2]
[385743516,1758001831430,-674.99611097,0.00020664,2]
[385743517,1758001831440,-250.0,0.00020966,2]
[385743518,1758001831450,-200.0,0.00020981,2]
[385743519,1758001831459,-518.13,0.00021034,2]
[385743520,1758001831469,-6851.53,0.0002106,2]
[385743521,1758001831478,-1205.3,0.00021136,2]
[385743522,1758001831487,-154.85,0.00021368,2]
[385743523,1758001831496,-300.0,0.00021832,2]
[385743524,1758001831506,-200.0,0.00021835,2]
[385743525,1758001831516,-200.0,0.00021835,2]
[385743526,1758001831525,-151.0,0.00021835,2]
[385743527,1758001831535,-151.0,0.00021835,2]
[385743528,1758001831549,-151.0,0.00021835,2]
[385743529,1758001831559,-151.0,0.00021835,2]
[385743530,1758001831569,-151.0,0.00021835,2]
[385743531,1758001831584,-200.0,0.00021835,2]
[385743532,1758001831594,-151.0,0.00021835,2]
[385743533,1758001831603,-151.0,0.00021835,2]
[385743534,1758001831613,-151.0,0.00021835,2]
[385743535,1758001831623,-151.0,0.00021835,2]
[385743536,1758001831632,-151.0,0.00021835,2]
[385743537,1758001831642,-151.0,0.00021835,2]
[385743538,1758001831652,-151.0,0.00021835,2]
[385743539,1758001831662,-151.0,0.00021835,2]
[385743540,1758001831672,-151.0,0.00021835,2]
[385743541,1758001831681,-151.0,0.00021835,2]
[385743542,1758001831691,-151.0,0.00021835,2]
[385743543,1758001831700,-151.0,0.00021835,2]
[385743544,1758001831710,-151.0,0.00021835,2]
[385743545,1758001831719,-164.22742226,0.00021835,2]
[385743546,1758001831729,-1033.47761779,0.00021838,2]
[385743547,1758001831738,-1388.96,0.00021845,2]
[385743548,1758001831748,-517.22,0.00021845,2]
[385743549,1758001831758,-922.27102938,0.00021847,2]
[385743551,1758001831769,-6754.9624712,0.00021848,2]
[385743553,1758001831779,-1992.0092542,0.00021848,2]
[385743555,1758001831791,-414.4008014,0.00021848,2]
[385743556,1758001831801,-1141.2324637,0.00021848,2]
[385743557,1758001831811,-9680.1672483,0.00021848,2]
[385743558,1758001831821,-352.0090143,0.00021848,2]
[385743559,1758001831831,-34817.10390621,0.00021848,2]
[385743560,1758001831842,-7530.25277469,0.00021848,2]
[385743561,1758001831851,-3118.0017925,0.00021848,2]
[385743562,1758001831861,-500.0,0.00021873,2]
[385743563,1758001831871,-504.41945976,0.00021873,2]
[385743565,1758001831880,-568.23071548,0.00021873,2]
[385743567,1758001831889,-504.20975913,0.00021873,2]
[385743569,1758001831898,-564.13129254,0.00021873,2]
[385743571,1758001831907,-512.96763459,0.00021873,2]
[385743573,1758001831916,-500.0,0.00021873,2]
[385743575,1758001831925,-200.0,0.00021893,2]
[385743577,1758001831935,-13622.57006961,0.000219,2]
[385743582,1758001831962,-4907.77417806,0.000219,2]
[385743584,1758001831972,-2024.49,0.00021928,2]
[385743586,1758001831981,-4822.69,0.00021929,2]
[385743588,1758001831990,-152.14,0.00021945,2]
[385743590,1758001831999,-501.22257293,0.00021973,2]
[385743593,1758001832009,-500.0,0.00021973,2]
[385743595,1758001832018,-503.32298515,0.00021973,2]
[385743597,1758001832028,-513.5513078,0.00021973,2]
[385743599,1758001832037,-504.89801178,0.00021973,2]
[385743600,1758001832046,-500.0,0.00021973,2]
[385743602,1758001832056,-500.0,0.00021973,2]
[385743604,1758001832065,-500.0,0.00021973,2]
[385743606,1758001832074,-503.71057858,0.00021973,2]
[385743609,1758001832084,-500.0,0.00021973,2]
[385743611,1758001832093,-500.0,0.00021973,2]
[385743613,1758001832102,-228.58182782,0.00021973,2]
[385743615,1758001832112,-150.0,0.00021973,2]
[385743617,1758001832121,-150.0,0.00021973,2]
[385743619,1758001832130,-500.0,0.00021973,2]
[385743621,1758001832139,-150.0,0.00021973,2]
[385743623,1758001832149,-150.0,0.00021973,2]
[385743625,1758001832158,-500.0,0.00021973,2]
[385743626,1758001832167,-150.0,0.00021973,2]
[385743628,1758001832177,-150.0,0.00021973,2]
[385743630,1758001832186,-500.0,0.00021973,2]
[385743632,1758001832195,-500.0,0.00021973,2]
[385743635,1758001832206,-526.1,0.0002199,2]
[385743637,1758001832215,-83033.31006262,0.00022,4]
[385743641,1758001832246,-4230.05466766,0.00022,4]
[385743643,1758001832255,-297.54833,0.00022,2]
[385743645,1758001832265,-167.39,0.00022073,2]
[385743647,1758001832274,-518.13,0.00022086,2]
[385743649,1758001832284,-600.0,0.0002211,2]
[385743651,1758001832294,-81.51136066,0.00022116,3]
[385743653,1758001832306,-584.48863934,0.00022116,3]
[385743655,1758001832315,-14.93136066,0.00022116,7]
[385743669,1758001837420,-196.700857,0.00020248,2]
[385743670,1758001837430,-135.06863934,0.00022116,7]
[385743671,1758001837440,-163.8,0.00022123,2]
[385743672,1758001837451,-150.0,0.00022123,2]
[385743673,1758001837460,-1513.15522805,0.00022169,2]
[385743674,1758001837640,-403.07594178,0.00022169,2]
[385743675,1758001837651,-1997.49019629,0.00022169,2]
[385743860,1758001839467,-1086.27863388,0.00022169,2]
[385743863,1758001839477,-124.66085851,0.00022247,2]
[385743865,1758001839489,-25.33914149,0.00022247,2]
[385743867,1758001839498,-150.0,0.00022247,2]
[385743869,1758001839508,-150.0,0.00022247,2]
[385743871,1758001839517,-500.0,0.00022247,2]
[385743873,1758001839527,-500.0,0.00022247,2]
[385743875,1758001839536,-500.0,0.00022247,2]
[385743877,1758001839545,-188.11,0.00022304,2]
[385743879,1758001839555,-200.0,0.00022383,2]
[385743881,1758001839565,-200.0,0.00022383,2]
[385743883,1758001839575,-154.85,0.00022386,2]
[385743885,1758001839586,-500.0,0.00022421,2]
[385743887,1758001839595,-508.77553136,0.00022521,2]
[385743889,1758001839604,-1000.0,0.00022521,2]
[385743891,1758001839614,-473.15438815,0.00022521,2]
[385743893,1758001839624,-1000.0,0.00022521,2]
[385743895,1758001839633,-200.0,0.00022521,2]
[385743897,1758001839642,-200.0,0.00022521,2]
[385743899,1758001839654,-200.0,0.00022521,2]
[385743901,1758001839664,-150.0,0.00022521,2]
[385743903,1758001839673,-500.0,0.00022521,2]
[385743905,1758001839683,-500.0,0.00022521,2]
[385743907,1758001839692,-500.0,0.00022521,2]
[385743909,1758001839701,-600.0,0.00022658,2]
[385743911,1758001839711,-500.0,0.00022795,2]
[385743913,1758001839720,-500.0,0.00022795,2]
[385743915,1758001839729,-500.0,0.00022795,2]
[385743917,1758001839739,-3553.20631737,0.00022866,2]
[385743919,1758001839750,-352.31027934,0.00022866,2]
[385743921,1758001839761,-1597.20340329,0.00022866,2]
[385743923,1758001839771,-145.12469621,0.00022906,2]
[385744380,1758001845838,-109.92530379,0.00022906,2]
[385744381,1758001845848,-1447.08,0.00022918,2]
[385744382,1758001845857,-200.0,0.00022931,2]
[385744383,1758001845867,-200.0,0.00022931,2]
[385744384,1758001845876,-500.0,0.0002298,2]
[385744385,1758001845885,-150.22990553,0.0002298,2]
[385744386,1758001845894,-500.0,0.0002298,2]
[385744388,1758001845904,-500.0,0.0002298,2]
[385744389,1758001845913,-500.0,0.0002298,2]
[385744390,1758001845922,-150.0,0.0002298,2]
[385744391,1758001845931,-150.0,0.0002298,2]
[385744392,1758001845939,-500.0,0.0002298,2]
[385744393,1758001845948,-500.0,0.0002298,2]
[385744394,1758001845957,-1560.0,0.0002298,2]
[385744395,1758001845966,-500.0,0.0002298,2]
[385744396,1758001845976,-500.0,0.0002298,2]
[385744397,1758001845985,-150.0,0.0002298,2]
[385744398,1758001845993,-500.0,0.0002298,2]
[385744399,1758001846003,-500.0,0.0002298,2]
[385744401,1758001846012,-150.0,0.0002298,2]
[385744402,1758001846021,-500.0,0.0002298,2]
[385744403,1758001846030,-500.0,0.0002298,2]
[385744404,1758001846038,-150.0,0.0002298,2]
[385744405,1758001846047,-475.0,0.0002298,2]
[385744406,1758001846057,-150.0,0.0002298,2]
[385744407,1758001846066,-188.11,0.0002298,2]
[385744408,1758001846075,-167.39,0.00022984,2]
[385744409,1758001846085,-10734.34,0.00023009,2]
[385744410,1758001846094,-1500.0,0.00023068,2]
[385744411,1758001846103,-1500.0,0.00023068,2]
[385744412,1758001846112,-500.0,0.00023068,2]
[385744413,1758001846121,-500.0,0.00023069,2]
[385744414,1758001846131,-500.0,0.00023069,2]
[385744415,1758001846140,-500.0,0.00023069,2]
[385744416,1758001846149,-10993.66,0.00023128,2]
[385744417,1758001846158,-150.0,0.00023128,2]
[385744418,1758001846167,-196.49,0.00023128,2]
[385744419,1758001846176,-518.13,0.00023137,2]
[385744420,1758001846185,-600.0,0.00023206,2]
[385744421,1758001846194,-500.0,0.00023254,2]
[385744422,1758001846203,-586.5764844,0.00023254,2]
[385744423,1758001846212,-551.99437865,0.00023254,2]
[385744424,1758001846221,-602.34666889,0.00023254,2]
[385744425,1758001846230,-150.0,0.00023254,2]
[385744426,1758001846239,-288.82556865,0.00023254,2]
[385744427,1758001846248,-500.0,0.00023254,2]
[385744428,1758001846257,-500.0,0.00023254,2]
[385744429,1758001846266,-1560.0,0.00023254,2]